[Event "Slovakian-ch Youth 2022"]
[Site "Lubovna"]
[Date "2022.05.23"]
[Round "4.8"]
[White "Cerven, Samuel"]
[Black "Hudak, Jan"]
[Result "1/2-1/2"]
[ECO "B28"]
[WhiteElo "1353"]
[BlackElo "1688"]
[Annotator "NA COMBH"]
[PlyCount "49"]
[EventDate "2022.05.22"]
[EventCountry "SVK"]
[SourceTitle "playchess.com"]
[Source "ChessBase"]
[SourceQuality "1"]
[TimeControl "40/5400+30:1800+30"]

1. e4 {[%emt 0:00:45]} c5 {[%emt 0:00:07]} 2. Nf3 a6 {[%emt 0:00:16]} 3. d4 {[%emt 0:01:51]} cxd4 {[%emt 0:00:41]} 4. Nxd4 Nf6 5. Nc3 {[%emt 0:06:09]} e5 {[%emt 0:02:27]} 6. Nb3 Nc6 {[%emt 0:01:50]} 7. a3 {[%emt 0:09:27]} d6 {[%emt 0:03:51]} 8. Be2 {[%emt 0:08:49]} Be7 {[%emt 0:01:11]} 9. O-O {[%emt 0:00:15]} O-O {[%emt 0:00:09]} 10. Bg5 {[%emt 0:04:05]} Be6 {[%emt 0:03:39]} 11. Be3 {[%emt 0:13:06]} d5 {[%emt 0:11:52]} 12. exd5 {[%emt 0:04:00]} Nxd5 {[%emt 0:00:09]} 13. Nxd5 {[%emt 0:02:29]} Bxd5 {[%emt 0:00:12]} 14. Re1 {[%emt 0:10:02]} Rc8 {[%emt 0:04:27]} 15. Rc1 {[%emt 0:11:09]} f5 {[%emt 0:03:23]} 16. f3 {[%emt 0:02:18]} Kh8 {[%emt 0:01:26]} 17. c4 {[%emt 0:03:27]} Bf7 {[%emt 0:04:01]} 18. Nc5 {[%emt 0:08:11]} Bxc5 {[%emt 0:24:00]} 19. Bxc5 {[%emt 0:00:10]} Re8 {[%emt 0:00:08]} 20. Qxd8 {[%emt 0:03:09]} Rexd8 {[%emt 0:00:29]} 21. Red1 {[%emt 0:00:37]} Rxd1+ {[%emt 0:02:03]} 22. Rxd1 {[%emt 0:00:13]} Na5 {[%emt 0:06:58]} 23. Bb4 {[%emt 0:01:42]} Nxc4 {[%emt 0:01:22]} 24. Bc3 {[%emt 0:00:29]} Nb6 {[%emt 0:14:57]} 25. Bxe5 {[%emt 0:00:34]} 1/2-1/2

[Event "Slovakian-ch Youth 2022"]
[Site "Lubovna"]
[Date "2022.05.23"]
[Round "4.9"]
[White "Kuna, Patrik"]
[Black "Beres, Tomas"]
[Result "1/2-1/2"]
[ECO "C01"]
[WhiteElo "1811"]
[BlackElo "2059"]
[Annotator "TA"]
[PlyCount "44"]
[EventDate "2022.05.22"]
[EventCountry "SVK"]
[SourceTitle "playchess.com"]
[Source "ChessBase"]
[SourceQuality "1"]
[TimeControl "40/5400+30:1800+30"]

{[%evp 19,35,0,13,0,0,0,18,-16,14,15,14,7,12,0,0,0,0,0]} 1. e4 {[%emt 0:01:47]} e6 {[%emt 0:00:17]} 2. d4 {[%emt 0:00:44]} d5 {[%emt 0:00:14]} 3. exd5 {[%emt 0:01:17]} exd5 {[%emt 0:00:07]} 4. Nf3 {[%emt 0:01:20]} Nf6 {[%emt 0:00:12]} 5. Bd3 {[%emt 0:00:24]} Bd6 {[%emt 0:00:05]} 6. O-O {[%emt 0:02:43]} O-O {[%emt 0:00:09]} 7. Bg5 {[%emt 0:03:22][%cal Bc1g5,Bg5h4,Bh4g3][%mdl 32]} Bg4 {[%emt 0:00:11]} 8. Nbd2 {[%emt 0:02:58]} Nbd7 {[%emt 0:00:17]} 9. c3 {[%emt 0:01:34]} c6 {[%emt 0:00:50]} 10. Qc2 {[%emt 0:01:28]} Qc7 {[%emt 0:00:23] The position is equal.} 11. Bh4 {[%emt 0:03:10] C01: French: Exchange Variation.} Bh5 {[%emt 0:00:15]} 12. Bg3 {[%emt 0:02:16]} Bg6 {[%emt 0:00:04]} 13. Rfe1 {[%emt 0:01:07]} Rfe8 {[%emt 0:00:04]} 14. Bxg6 {[%emt 0:01:35]} hxg6 {[%emt 0:00:05]} 15. Rxe8+ {[%emt 0:02:18]} Rxe8 {[%emt 0:00:04]} 16. Re1 {[%emt 0:00:11]} Rxe1+ {[%emt 0:00:06]} 17. Nxe1 {[%emt 0:00:47]} Bxg3 {[%emt 0:00:04]} 18. hxg3 {[%emt 0:00:40] [#] An even fight not without its subleties.  Weighted Error Value: White=0.11 (very precise) /Black=0.10 (very precise)} {Predecessor:} b6 $146 19. Nef3 c5 20. Nf1 Nf8 21. Ne3 Ne6 22. Qa4 Qb7 {½-½ (30) Spasov,V (2554)-Nikolov,M (2522) Sunny Beach 2015} 1/2-1/2

[Event "Slovakian-ch Youth 2022"]
[Site "Lubovna"]
[Date "2022.05.23"]
[Round "4.9"]
[White "Hasala, Richard"]
[Black "Gourlay, Martin B"]
[Result "1-0"]
[ECO "B11"]
[WhiteElo "1318"]
[BlackElo "1911"]
[Annotator "TA"]
[PlyCount "97"]
[EventDate "2022.05.22"]
[EventCountry "SVK"]
[SourceTitle "playchess.com"]
[Source "ChessBase"]
[SourceQuality "1"]
[TimeControl "40/5400+30:1800+30"]

{[%evp 9,97,9,32,31,28,25,35,21,25,21,25,15,33,26,28,25,40,33,31,0,0,-5,0,-35,-30,-34,-30,-27,-14,-105,-13,-48,-40,-43,0,-45,-54,-60,-58,-93,-86,-84,-83,-107,-97,-96,-85,-94,-76,-81,-41,-57,0,0,-8,-14,0,0,0,0,0,0,0,0,0,0,10,10,32,31,31,31,122,114,520,107,804,751,416,300,1336,1207,641,0,12835,12836,12845,12845,12845,12846]} 1. e4 {[%emt 0:00:03]} c6 {[%emt 0:00:05]} 2. Nc3 {[%emt 0:00:14]} d5 {[%emt 0:00:58]} 3. Nf3 {[%emt 0:00:06]} Bg4 {[%emt 0:01:16]} 4. h3 {[%emt 0:00:18]} Bh5 {[%emt 0:00:09]} 5. Be2 {[%emt 0:01:43]} dxe4 {[%emt 0:02:04]} 6. Nxe4 {[%emt 0:00:10] B11: Caro-Kann: Two Knights Variation.} e6 {[%emt 0:00:53]} 7. d4 {[%emt 0:01:20]} (7. Ne5 {looks sharper.} Qd5 8. Bxh5 Qxe4+ 9. Qe2) 7... Be7 {[%emt 0:01:43] [#]} 8. Bf4 $146 {[%emt 0:01:23] White is slightly better.} ({Predecessor:} 8. O-O Nf6 9. Ng3 Bg6 10. Re1 Nbd7 11. c3 O-O 12. Qb3 Qc7 13. Bc4 Bd6 14. Nf1 {1-0 (42) Wikner,A (2242)-Lundin,J (2249) Sweden 2016}) 8... Nf6 {[%emt 0:01:16]} 9. Ng3 {[%emt 0:01:05]} Bxf3 {[%emt 0:01:39]} 10. Bxf3 {[%emt 0:00:08]} Nbd7 {[%emt 0:01:59]} 11. c3 {[%emt 0:02:01]} O-O {[%emt 0:00:27]} 12. O-O {[%emt 0:00:08]} Qb6 {[%emt 0:01:41]} 13. Qc2 {[%emt 0:02:44]} Nd5 {[%emt 0:01:35]} 14. Bxd5 {[%emt 0:01:48]} cxd5 {[%emt 0:00:41]} 15. Rfe1 {[%emt 0:06:19]} Rfe8 {[%emt 0:00:23]} 16. Be5 {[%emt 0:03:11]} Nxe5 {[%emt 0:00:55]} 17. Rxe5 {[%emt 0:00:20]} Bd6 {[%emt 0:01:05]} 18. Re3 {[%emt 0:00:25]} Rac8 {[%emt 0:01:43][%cal Ob6d4]} 19. Rae1 {[%emt 0:00:54] [#]} (19. Qe2 $11 {remains equal.}) 19... Qa5 {[%emt 0:01:42]} (19... Qxd4 $3 $17 {[%mdl 512]} 20. Nf5 Qb6 21. Nxd6 Qxd6) 20. Qb1 {[%emt 0:00:54]} b5 {[%emt 0:00:55]} 21. a3 {[%emt 0:01:15]} Qa4 {[%emt 0:02:58]} 22. Nf5 {[%emt 0:05:06]} Bf8 {[%emt 0:01:34][%cal Ob5b4]} 23. Nh4 $1 {[%emt 0:00:20]} a5 {[%emt 0:02:36]} 24. f4 {[%emt 0:08:25]} b4 $1 {[%emt 0:00:17]} 25. axb4 {[%emt 0:01:06]} axb4 {[%emt 0:01:48]} 26. Qd1 {[%emt 0:00:24]} Qxd1 {[%emt 0:01:22]} 27. Rxd1 {[%emt 0:00:04]} bxc3 {[%emt 0:00:13]} 28. bxc3 {[%emt 0:00:08]} Be7 {[%emt 0:01:27]} 29. Nf3 {[%emt 0:00:13]} Rc6 {[%emt 0:00:20]} 30. Rde1 {[%emt 0:02:16][%cal Of4f5]} Rec8 {[%emt 0:02:19]} (30... Rc7 $15 {feels stronger.}) 31. f5 $1 $11 {[%emt 0:02:13]} Rxc3 {[%emt 0:00:53]} 32. fxe6 {[%emt 0:00:20]} Rxe3 {[%emt 0:01:30]} 33. exf7+ {[%emt 0:00:09]} Kxf7 {[%emt 0:01:32] aiming for ...Rxe1+.} 34. Rxe3 {[%emt 0:00:05][%mdl 4096] Endgame KRB-KRN} Rc1+ {[%emt 0:00:36]} 35. Kf2 {[%emt 0:00:56]} Bf6 {[%emt 0:01:45]} 36. Ne5+ {[%emt 0:00:27]} Bxe5 {[%emt 0:00:53]} 37. Rxe5 {[%emt 0:00:14] KR-KR} Rc8 {[%emt 0:01:01]} 38. Rxd5 {[%emt 0:00:09]} Ke6 {[%emt 0:00:09]} 39. Re5+ {[%emt 0:02:24]} Kd6 {[%emt 0:00:33]} 40. Ra5 {[%emt 0:01:27] Hoping for Ra7.} Rf8+ {[%emt 0:02:33]} ({Black should play} 40... Ke6 $14) 41. Ke3 $16 {[%emt 0:30:37]} h6 $2 {[%emt 0:30:27][%mdl 8192]} (41... Re8+ $16 {is more resistant.} 42. Kd3 Re7) 42. g4 $2 {[%emt 0:03:04]} (42. Ra7 $18 {and White stays clearly on top.} Re8+ 43. Kd3) 42... Re8+ $2 {[%emt 0:00:28][%mdl 8192]} (42... Rf1 $16) 43. Kf4 $1 $18 {[%emt 0:00:14]} Rf8+ {[%emt 0:00:47]} 44. Rf5 {[%emt 0:00:23]} g5+ $2 {[%emt 0:00:42]} (44... Rd8 45. h4 Rd7) 45. Ke4 {[%emt 0:00:24]} Re8+ {[%emt 0:00:24] [#]} 46. Kd3 $2 {[%emt 0:00:09]} (46. Re5 $1 $18 {[%cal Re5e8]} Rf8 47. Rd5+ Ke7 48. Ra5) 46... Re7 {[%emt 0:00:58][%mdl 8192] [#]} (46... Re1 $11) 47. Rf6+ $1 {[%emt 0:00:18] White is clearly winning.} Re6 {[%emt 0:00:12]} 48. Rxe6+ {[%emt 0:00:06]} Kxe6 {[%emt 0:00:05]} 49. Ke4 {[%emt 0:00:06] Weighted Error Value: White=0.50/Black=0.40} 1-0

[Event "Slovakian-ch Youth 2022"]
[Site "Lubovna"]
[Date "2022.05.23"]
[Round "4.10"]
[White "Smetana, Peter"]
[Black "Kluska, Lukas"]
[Result "1-0"]
[ECO "C47"]
[WhiteElo "1740"]
[BlackElo "1215"]
[Annotator "NA COMBH"]
[PlyCount "81"]
[EventDate "2022.05.22"]
[EventCountry "SVK"]
[SourceTitle "playchess.com"]
[Source "ChessBase"]
[SourceQuality "1"]
[TimeControl "40/5400+30:1800+30"]

1. e4 {[%emt 0:00:15]} e5 {[%emt 0:00:11]} 2. Nf3 {[%emt 0:00:30]} Nc6 {[%emt 0:00:35]} 3. Nc3 {[%emt 0:00:51]} Nf6 {[%emt 0:01:00]} 4. d4 {[%emt 0:01:18]} exd4 {[%emt 0:00:51]} 5. Nxd4 {[%emt 0:00:57]} Nxd4 {[%emt 0:00:37]} 6. Qxd4 {[%emt 0:00:33]} d6 {[%emt 0:00:32]} 7. Bc4 {[%emt 0:01:26]} Be7 {[%emt 0:00:52]} 8. O-O {[%emt 0:08:32]} O-O {[%emt 0:01:34]} 9. h3 {[%emt 0:11:12]} Be6 {[%emt 0:05:07]} 10. Bd3 {[%emt 0:02:59]} Qd7 {[%emt 0:00:49]} 11. Qe3 {[%emt 0:00:52]} d5 {[%emt 0:01:42]} 12. exd5 {[%emt 0:01:05]} Nxd5 {[%emt 0:00:26]} 13. Nxd5 {[%emt 0:00:39]} Qxd5 {[%emt 0:00:27]} 14. Rd1 {[%emt 0:01:08]} Qh5 {[%emt 0:00:47]} 15. Bd2 {[%emt 0:01:09]} Bf6 {[%emt 0:00:51]} 16. c3 {[%emt 0:09:06]} Rfe8 {[%emt 0:01:32]} 17. Re1 {[%emt 0:06:12]} Bd7 {[%emt 0:03:21]} 18. Qg3 {[%emt 0:03:16]} Qc5 {[%emt 0:04:15]} 19. Be3 {[%emt 0:01:31]} Qc6 {[%emt 0:02:41]} 20. Rad1 {[%emt 0:05:45]} Rad8 {[%emt 0:01:56]} 21. Bf4 {[%emt 0:01:23]} Rc8 {[%emt 0:01:51]} 22. Rxe8+ {[%emt 0:07:00]} Bxe8 {[%emt 0:01:06]} 23. Bf5 {[%emt 0:01:05]} Rd8 {[%emt 0:00:15]} 24. Rxd8 {[%emt 0:00:42]} Bxd8 {[%emt 0:00:09]} 25. Qd3 {[%emt 0:00:22]} Bf6 {[%emt 0:00:37]} 26. Bxh7+ {[%emt 0:00:19]} Kh8 {[%emt 0:00:20]} 27. Be4 {[%emt 0:00:30]} Qb6 {[%emt 0:00:13]} 28. b4 {[%emt 0:02:39]} Bc6 {[%emt 0:05:44]} 29. Bxc6 {[%emt 0:02:29]} Qxc6 {[%emt 0:01:52]} 30. Bd2 {[%emt 0:04:09]} Qd6 {[%emt 0:01:27]} 31. Qxd6 {[%emt 0:00:51]} cxd6 {[%emt 0:00:07]} 32. a4 {[%emt 0:02:02]} d5 {[%emt 0:00:35]} 33. Kf1 {[%emt 0:00:14]} d4 {[%emt 0:00:31]} 34. cxd4 {[%emt 0:00:43]} Bxd4 {[%emt 0:00:06]} 35. Ke2 {[%emt 0:00:03]} Kh7 {[%emt 0:00:11]} 36. Be3 {[%emt 0:00:10]} Bc3 {[%emt 0:00:22]} 37. Bxa7 {[%emt 0:00:15]} Bxb4 {[%emt 0:00:05]} 38. Kd3 {[%emt 0:00:08]} Kg6 {[%emt 0:00:15]} 39. Kc4 {[%emt 0:00:05]} Be1 {[%emt 0:00:18]} 40. Kb5 {[%emt 0:00:08]} Kf5 {[%emt 0:00:27]} 41. Be3 {[%emt 0:30:06]} 1-0

[Event "Slovakian-ch Youth 2022"]
[Site "Lubovna"]
[Date "2022.05.23"]
[Round "4.10"]
[White "Svorad, Tomas"]
[Black "Priechodsky, Radovan"]
[Result "0-1"]
[ECO "B06"]
[WhiteElo "1405"]
[BlackElo "1965"]
[Annotator "TA"]
[PlyCount "74"]
[EventDate "2022.05.22"]
[EventCountry "SVK"]
[SourceTitle "playchess.com"]
[Source "ChessBase"]
[SourceQuality "1"]
[TimeControl "40/5400+30:1800+30"]

{[%evp 9,74,37,42,19,43,19,18,-16,-9,-12,0,-10,0,-58,-24,-29,-26,-22,-31,-35,-8,-158,-165,-410,-404,-421,-417,-415,-385,-476,-431,-529,-399,-398,-404,-405,-382,-479,-469,-489,-500,-512,-516,-510,-510,-487,-469,-512,-476,-604,-584,-604,-574,-652,-642,-620,-496,-722,-717,-1083,-1062,-909,-898,-890,-858,-780,-750]} 1. e4 {[%emt 0:00:09]} g6 {[%emt 0:00:39]} 2. d4 {[%emt 0:01:29]} d6 {[%emt 0:00:14]} 3. Nc3 {[%emt 0:02:24]} Nd7 {[%emt 0:00:16]} 4. Be2 {[%emt 0:00:46]} Bg7 {[%emt 0:00:22]} 5. Be3 {[%emt 0:00:16]} a6 {[%emt 0:00:22]} 6. Nf3 {[%emt 0:00:47] B06: Modern Defence.} b5 {[%emt 0:00:16]} 7. a3 {[%emt 0:02:45]} Bb7 {[%emt 0:02:00]} 8. Qd2 {[%emt 0:00:43] The position is equal.} c5 {[%emt 0:07:48]} 9. O-O {[%emt 0:01:34]} (9. Rd1 $5 {[%cal Rd4c5]}) 9... cxd4 {[%emt 0:01:28]} 10. Nxd4 {[%emt 0:00:40]} Ngf6 {[%emt 0:00:44]} 11. Bd3 {[%emt 0:06:01]} (11. f3 $11) 11... O-O {[%emt 0:08:24][%cal Be8g8,Bg8g7,Bg7h8][%mdl 32]} 12. Bh6 {[%emt 0:00:30]} Rc8 {[%emt 0:00:30]} 13. Bxg7 {[%emt 0:01:15]} Kxg7 {[%emt 0:00:10] [#]} 14. Rfe1 $146 {[%emt 0:03:54]} ({Predecessor:} 14. Nb3 Qb6 15. Rfe1 e6 16. Re3 Ne5 17. Rh3 h5 18. Re1 Rc7 19. Rhe3 Rfc8 20. h3 {½-½ (67) Pezo,E (2131)-Werner,G ICCF email 2008}) 14... Qb6 {[%emt 0:10:56]} 15. Nce2 {[%emt 0:21:27]} (15. Bf1 $11) 15... e5 {[%emt 0:07:17]} ({Weaker is} 15... Nxe4 16. Bxe4 Bxe4 17. Nc3 $15) 16. Ng3 $2 {[%emt 0:10:02] [#]} (16. Nb3) 16... Qxd4 $19 {[%emt 0:04:11]} 17. c3 {[%emt 0:08:47]} Qb6 {[%emt 0:02:17]} 18. Qg5 {[%emt 0:00:08]} Kh8 {[%emt 0:01:05]} 19. Re3 {[%emt 0:03:07]} Qd8 {[%emt 0:01:16]} 20. Rf3 {[%emt 0:04:44]} Nh5 {[%emt 0:02:14]} 21. Qxd8 {[%emt 0:03:44]} Rcxd8 {[%emt 0:00:22]} 22. Nxh5 {[%emt 0:00:13]} gxh5 {[%emt 0:00:09]} 23. b4 {[%emt 0:00:11]} f5 {[%emt 0:00:42] Black is clearly winning.} 24. Re3 {[%emt 0:01:06]} fxe4 {[%emt 0:00:23]} 25. Bxe4 {[%emt 0:00:06]} Bxe4 {[%emt 0:00:14]} 26. Rxe4 {[%emt 0:00:05]} Nf6 {[%emt 0:00:05]} 27. Re3 {[%emt 0:00:37]} e4 {[%emt 0:01:22]} 28. Rd1 {[%emt 0:00:27]} d5 {[%emt 0:00:12]} 29. Rd4 {[%emt 0:00:14]} Rc8 {[%emt 0:00:34]} 30. h3 {[%emt 0:00:16]} Rc4 {[%emt 0:00:20]} 31. f3 {[%emt 0:00:43]} Rxd4 {[%emt 0:00:28]} 32. cxd4 {[%emt 0:00:09][%mdl 4096] Endgame KRN-KR} Kg7 {[%emt 0:00:08]} 33. fxe4 {[%emt 0:00:42]} (33. Rc3 $142) 33... Nxe4 {[%emt 0:00:05]} 34. g4 {[%emt 0:01:07]} hxg4 {[%emt 0:49:57] [#] aiming for ...Rf3.} 35. hxg4 {[%emt 0:26:52]} Rc8 {[%emt 0:00:30]} 36. Kg2 {[%emt 0:00:30]} Rc2+ {[%emt 0:00:30]} 37. Kf1 {[%emt 0:00:30]} Rf2+ {[%emt 0:00:30] White got outplayed after the opening.  Weighted Error Value: White=0.54/Black=0.10 (very precise)} 0-1

[Event "Slovakian-ch Youth 2022"]
[Site "Lubovna"]
[Date "2022.05.23"]
[Round "4.11"]
[White "Rybiansky, Jergus"]
[Black "Kostelansky, Karol"]
[Result "1-0"]
[ECO "A80"]
[WhiteElo "1379"]
[BlackElo "1821"]
[Annotator "NA COMBH"]
[PlyCount "53"]
[EventDate "2022.05.22"]
[EventCountry "SVK"]
[SourceTitle "playchess.com"]
[Source "ChessBase"]
[SourceQuality "1"]
[TimeControl "40/5400+30:1800+30"]

1. d4 {[%emt 0:00:07]} f5 {[%emt 0:00:36]} 2. Nc3 {[%emt 0:00:20]} d5 {[%emt 0:00:16]} 3. Nf3 {[%emt 0:00:47]} Nf6 {[%emt 0:00:33]} 4. Bg5 {[%emt 0:01:01]} e6 {[%emt 0:00:38]} 5. e3 {[%emt 0:01:21]} Be7 {[%emt 0:05:04]} 6. Bd3 {[%emt 0:04:21]} O-O {[%emt 0:01:56]} 7. Ne5 {[%emt 0:10:12]} Nc6 {[%emt 0:08:11]} 8. f4 {[%emt 0:06:44]} Nb4 {[%emt 0:13:13]} 9. a3 {[%emt 0:04:11]} Nxd3+ {[%emt 0:03:03]} 10. cxd3 {[%emt 0:00:13]} Nd7 {[%emt 0:05:19]} 11. Nxd7 {[%emt 0:06:50]} Bxd7 {[%emt 0:02:47]} 12. h4 {[%emt 0:05:00]} Rc8 {[%emt 0:04:13]} 13. g4 {[%emt 0:06:49]} fxg4 {[%emt 0:08:04]} 14. Qxg4 {[%emt 0:00:54]} c5 {[%emt 0:05:23]} 15. dxc5 {[%emt 0:04:41]} Rxc5 {[%emt 0:01:40]} 16. d4 {[%emt 0:03:03]} Rc8 {[%emt 0:06:06]} 17. Kd2 {[%emt 0:05:48]} Bxg5 {[%emt 0:08:05]} 18. hxg5 {[%emt 0:00:16]} g6 {[%emt 0:02:46]} 19. Rh6 {[%emt 0:13:28]} Rf7 {[%emt 0:01:38]} 20. Rah1 {[%emt 0:00:46]} Qb6 {[%emt 0:01:54]} 21. b4 {[%emt 0:01:57]} Rc7 {[%emt 0:04:41]} 22. Qh4 {[%emt 0:01:12]} Be8 {[%emt 0:01:26]} 23. Rxg6+ {[%emt 0:01:17]} Rg7 {[%emt 0:03:22]} 24. Qxh7+ {[%emt 0:00:28]} Kf8 {[%emt 0:00:56]} 25. Qh8+ {[%emt 0:00:20]} Ke7 {[%emt 0:00:50]} 26. Qxg7+ {[%emt 0:01:10]} Kd8 {[%emt 0:00:57]} 27. Qf6+ {[%emt 0:01:00]} 1-0

[Event "Slovakian-ch Youth 2022"]
[Site "Lubovna"]
[Date "2022.05.23"]
[Round "4.11"]
[White "Krivosik, Matus"]
[Black "Kudela, Oliver"]
[Result "1/2-1/2"]
[ECO "D00"]
[WhiteElo "1224"]
[BlackElo "1344"]
[Annotator "NA COMBH"]
[PlyCount "96"]
[EventDate "2022.05.22"]
[EventCountry "SVK"]
[SourceTitle "playchess.com"]
[Source "ChessBase"]
[SourceQuality "1"]
[TimeControl "40/5400+30:1800+30"]

1. d4 {[%emt 0:00:02]} d5 {[%emt 0:00:18]} 2. Bf4 {[%emt 0:00:06]} Nf6 {[%emt 0:01:13]} 3. e3 {[%emt 0:00:08]} Bf5 {[%emt 0:01:20]} 4. Bd3 {[%emt 0:00:34]} Bg6 {[%emt 0:01:10]} 5. Nf3 {[%emt 0:01:20]} Ne4 {[%emt 0:02:26]} 6. O-O {[%emt 0:01:51]} e6 {[%emt 0:00:57]} 7. Nbd2 {[%emt 0:02:06]} Nd6 {[%emt 0:01:34]} 8. Re1 {[%emt 0:02:16]} Bxd3 {[%emt 0:01:24]} 9. cxd3 Nd7 {[%emt 0:01:28]} 10. e4 {[%emt 0:01:34]} c6 {[%emt 0:01:36]} 11. Nb3 {[%emt 0:01:56]} Be7 {[%emt 0:02:17]} 12. Nc5 {[%emt 0:01:09]} Nxc5 {[%emt 0:02:43]} 13. dxc5 {[%emt 0:00:02]} Nb5 {[%emt 0:02:00]} 14. a4 {[%emt 0:00:42]} Nc7 {[%emt 0:01:17]} 15. b4 {[%emt 0:01:15]} dxe4 {[%emt 0:02:25]} 16. dxe4 {[%emt 0:01:04]} Qxd1 {[%emt 0:00:37]} 17. Rexd1 {[%emt 0:00:54]} Na6 {[%emt 0:01:26]} 18. Rd4 {[%emt 0:00:48]} f6 {[%emt 0:01:50]} 19. e5 {[%emt 0:00:45]} f5 {[%emt 0:06:27]} 20. Ng5 {[%emt 0:02:18]} Bxg5 {[%emt 0:01:52]} 21. Bxg5 {[%emt 0:00:01]} h6 {[%emt 0:00:56]} 22. Bh4 {[%emt 0:01:09]} g5 {[%emt 0:00:35]} 23. Bg3 {[%emt 0:02:39]} f4 {[%emt 0:00:15]} 24. Bxf4 {[%emt 0:00:22]} gxf4 {[%emt 0:00:14]} 25. Rxf4 {[%emt 0:00:03]} Ke7 {[%emt 0:01:43]} 26. Rg4 {[%emt 0:02:20]} Rhg8 {[%emt 0:00:56]} 27. Rh4 {[%emt 0:00:54]} Rg6 {[%emt 0:00:29]} 28. f4 {[%emt 0:00:17]} Rag8 {[%emt 0:01:54]} 29. g3 {[%emt 0:00:20]} Nc7 {[%emt 0:01:51]} 30. Rh5 {[%emt 0:02:17]} Rf8 {[%emt 0:00:32]} 31. Kf2 {[%emt 0:01:18]} Nd5 {[%emt 0:01:59]} 32. b5 {[%emt 0:00:36]} Rc8 {[%emt 0:01:51]} 33. f5 {[%emt 0:01:31]} exf5 {[%emt 0:02:38]} 34. Rxf5 {[%emt 0:02:02]} Rf8 {[%emt 0:01:54]} 35. Rxf8 {[%emt 0:00:14]} Kxf8 {[%emt 0:00:31]} 36. Kf3 {[%emt 0:01:07]} Ke7 {[%emt 0:00:59]} 37. bxc6 {[%emt 0:03:30]} Rxc6 {[%emt 0:00:30]} 38. Rb1 {[%emt 0:01:37]} b6 {[%emt 0:00:30]} 39. cxb6 {[%emt 0:01:38]} Rxb6 {[%emt 0:00:59]} 40. Rxb6 {[%emt 0:01:21]} axb6 {[%emt 0:00:11]} 41. Ke4 {[%emt 0:32:37]} Ke6 {[%emt 0:30:22]} 42. h4 {[%emt 0:01:46]} Nc3+ {[%emt 0:02:06]} 43. Kd4 {[%emt 0:00:19]} Nxa4 {[%emt 0:00:30]} 44. g4 {[%emt 0:00:13]} Nc5 {[%emt 0:01:10]} 45. g5 {[%emt 0:00:58]} h5 {[%emt 0:01:22]} 46. g6 {[%emt 0:04:16]} Ke7 {[%emt 0:00:37]} 47. Kd5 {[%emt 0:00:25]} Ne6 {[%emt 0:01:22]} 48. Kc6 {[%emt 0:00:35]} Ke8 1/2-1/2

[Event "Slovakian-ch Youth 2022"]
[Site "Lubovna"]
[Date "2022.05.23"]
[Round "4.12"]
[White "Vida, Gergo"]
[Black "Toth, Marton"]
[Result "1/2-1/2"]
[ECO "A01"]
[WhiteElo "1821"]
[BlackElo "1849"]
[Annotator "NA COMBH"]
[PlyCount "26"]
[EventDate "2022.05.22"]
[EventCountry "SVK"]
[SourceTitle "playchess.com"]
[Source "ChessBase"]
[SourceQuality "1"]
[TimeControl "40/5400+30:1800+30"]

1. b3 {[%emt 0:00:05]} f5 {[%emt 0:00:35]} 2. Bb2 {[%emt 0:00:11]} Nf6 {[%emt 0:00:16]} 3. e3 {[%emt 0:00:25]} e6 {[%emt 0:00:35]} 4. Nf3 {[%emt 0:00:12]} Nc6 {[%emt 0:00:46]} 5. d4 {[%emt 0:03:34]} d5 {[%emt 0:01:30]} 6. Nbd2 {[%emt 0:03:26]} Be7 {[%emt 0:01:04]} 7. Bb5 {[%emt 0:03:06]} Bd7 {[%emt 0:03:18]} 8. O-O {[%emt 0:01:59]} O-O {[%emt 0:01:58]} 9. Qe2 {[%emt 0:00:33]} a6 {[%emt 0:05:13]} 10. Bxc6 {[%emt 0:00:18]} Bxc6 {[%emt 0:00:30]} 11. Rfc1 {[%emt 0:03:11]} Bb4 {[%emt 0:01:06]} 12. a3 {[%emt 0:01:28]} Bb5 {[%emt 0:00:36]} 13. Qd1 {[%emt 0:00:57]} Bxd2 1/2-1/2

[Event "Slovakian-ch Youth 2022"]
[Site "Lubovna"]
[Date "2022.05.23"]
[Round "4.12"]
[White "Marcin, Richard"]
[Black "Bidulsky, Matej"]
[Result "0-1"]
[ECO "C20"]
[WhiteElo "1325"]
[BlackElo "1800"]
[Annotator "NA COMBH"]
[PlyCount "34"]
[EventDate "2022.05.22"]
[EventCountry "SVK"]
[SourceTitle "playchess.com"]
[Source "ChessBase"]
[SourceQuality "1"]
[TimeControl "40/5400+30:1800+30"]

1. e4 {[%emt 0:00:06]} e5 {[%emt 0:04:25]} 2. Ne2 {[%emt 0:00:28]} Nf6 {[%emt 0:00:37]} 3. Nbc3 {[%emt 0:00:36]} d5 {[%emt 0:00:18]} 4. d4 {[%emt 0:01:24]} exd4 {[%emt 0:01:00]} 5. Qxd4 {[%emt 0:02:19]} Nc6 {[%emt 0:03:07]} 6. Qa4 {[%emt 0:01:20]} d4 {[%emt 0:02:03]} 7. e5 {[%emt 0:02:47]} Ng4 {[%emt 0:00:54]} 8. Nb5 {[%emt 0:02:05]} Bc5 {[%emt 0:01:20]} 9. Bf4 {[%emt 0:01:16]} d3 {[%emt 0:07:06]} 10. O-O-O {[%emt 0:03:57]} Nxf2 {[%emt 0:00:19]} 11. Rd2 {[%emt 0:00:16]} O-O {[%emt 0:01:09]} 12. Ng3 {[%emt 0:02:30]} Nb4 {[%emt 0:03:59]} 13. Qb3 {[%emt 0:07:28]} Be6 {[%emt 0:01:01]} 14. Qa4 {[%emt 0:04:18]} Qh4 {[%emt 0:01:22]} 15. Bxd3 {[%emt 0:11:48]} Qxf4 {[%emt 0:00:32]} 16. Kb1 {[%emt 0:07:55]} Qxd2 {[%emt 0:00:17]} 17. a3 {[%emt 0:00:26]} Nbxd3 {[%emt 0:00:19]} 0-1